bitfinex/quotes_BTCUSD_20230118
["timestamp","ask_amount","ask_price","bid_price","bid_amount"]
[1674077582022,0.00835168,20780.0,20779.0,1.88705169]
[1674077582285,0.00835168,20780.0,20779.0,2.07024084]
[1674077582814,0.00835168,20780.0,20779.0,2.07874084]
[1674077583106,0.00835168,20780.0,20779.0,2.16574084]
[1674077583645,0.00835168,20780.0,20779.0,2.01574084]
[1674077584209,0.00835168,20780.0,20779.0,1.53853915]
[1674077585440,0.00835168,20780.0,20779.0,1.35535]
[1674077585694,0.00835168,20780.0,20779.0,2.23719835]
[1674077585941,0.00835168,20780.0,20779.0,2.27806544]
[1674077586196,0.00835168,20780.0,20779.0,2.57806544]
[1674077586460,0.00835168,20780.0,20779.0,2.06125169]
[1674077586703,0.00835168,20780.0,20779.0,3.55841494]
[1674077586704,1.68e-06,20780.0,20779.0,3.55841494]
[1674077587455,1.68e-06,20780.0,20779.0,3.47141494]
[1674077587701,1.68e-06,20780.0,20779.0,3.56341494]
[1674077587959,1.68e-06,20780.0,20779.0,2.80189028]
[1674077588212,1.68e-06,20780.0,20779.0,2.20479028]
[1674077588476,1.68e-06,20780.0,20779.0,2.14679028]
[1674077589249,1.68e-06,20780.0,20779.0,2.05479028]
[1674077589498,1.68e-06,20780.0,20779.0,2.14679028]
[1674077589747,1.68e-06,20780.0,20779.0,1.43055]
[1674077589998,1.68e-06,20780.0,20779.0,1.35185]
[1674077590501,1.68e-06,20780.0,20779.0,1.59519229]
[1674077590752,1.68e-06,20780.0,20779.0,2.15049398]
[1674077590974,1.68e-06,20780.0,20779.0,2.15899398]
[1674077592224,1.68e-06,20780.0,20779.0,2.45899398]
[1674077592473,1.68e-06,20780.0,20779.0,2.66409398]
[1674077592730,1.68e-06,20780.0,20779.0,3.42561864]
[1674077593225,1.68e-06,20780.0,20779.0,2.96409398]
[1674077594986,1.68e-06,20780.0,20779.0,2.66409398]
[1674077595712,1.68e-06,20780.0,20779.0,2.96409398]
[1674077596539,1.68e-06,20780.0,20779.0,2.66409398]
[1674077596803,1.68e-06,20780.0,20779.0,2.96409398]
[1674077597307,1.68e-06,20780.0,20779.0,2.15899398]
[1674077604601,1.68e-06,20780.0,20779.0,2.45899398]
[1674077605133,1.68e-06,20780.0,20779.0,2.96409398]
[1674077605391,1.68e-06,20780.0,20779.0,3.42561864]
[1674077605914,1.68e-06,20780.0,20779.0,2.96409398]
[1674077607512,1.68e-06,20780.0,20779.0,3.42561864]
[1674077607761,1e-08,20782.0,20780.0,0.6551]
[1674077608009,1e-08,20782.0,20781.0,2.25188769]
[1674077608286,1e-08,20782.0,20781.0,3.07508769]
[1674077609114,1e-08,20782.0,20781.0,3.58018769]
[1674077609635,1e-08,20782.0,20781.0,3.67218769]
[1674077609897,1e-08,20782.0,20781.0,3.58018769]
[1674077610146,1e-08,20782.0,20781.0,3.67218769]
[1674077610664,1e-08,20782.0,20781.0,3.84988346]
[1674077611744,1e-08,20782.0,20781.0,3.55015234]
[1674077611965,1e-08,20782.0,20781.0,3.04505234]
[1674077613016,1e-08,20782.0,20781.0,2.95305234]
[1674077613298,1e-08,20782.0,20781.0,3.04505234]
[1674077613879,1e-08,20782.0,20781.0,2.52158346]
[1674077615212,1e-08,20782.0,20781.0,2.52185234]
[1674077622221,1e-08,20782.0,20781.0,2.42985234]
[1674077622475,1e-08,20782.0,20781.0,2.52185234]
[1674077622727,1e-08,20782.0,20781.0,2.42985234]
[1674077622987,1e-08,20782.0,20781.0,2.52185234]
[1674077623806,1.67e-06,20783.0,20781.0,5.70721814]
[1674077624065,1.67e-06,20783.0,20782.0,3.98349815]
[1674077624324,0.00835157,20784.0,20783.0,0.6551]
[1674077624325,3.24e-06,20784.0,20783.0,0.6551]
[1674077624592,3.24e-06,20784.0,20783.0,5.07171722]
[1674077624865,3.24e-06,20784.0,20783.0,5.23731722]
[1674077625102,3.24e-06,20784.0,20783.0,5.00848643]
[1674077625362,3.24e-06,20784.0,20783.0,5.27233136]
[1674077625621,0.00885423,20786.0,20784.0,0.6551]
[1674077625928,0.00885423,20786.0,20785.0,3.80644735]
[1674077626394,0.00885423,20786.0,20785.0,3.90512502]
[1674077626653,0.00980687,20791.0,20785.0,4.44348108]
[1674077626916,0.00980687,20791.0,20789.0,0.5051]
[1674077627196,0.00980687,20791.0,20789.0,4.50601232]
[1674077627486,0.00980687,20791.0,20789.0,4.65532342]
[1674077627713,0.17262207,20799.0,20789.0,4.65532342]
[1674077627714,0.11513885,20799.0,20790.0,0.00837]
[1674077628244,0.11513885,20799.0,20794.0,0.0787]
[1674077628246,0.23226194,20798.0,20794.0,0.0787]
[1674077628560,0.23226194,20798.0,20795.0,1.48630597]
[1674077628755,0.20389027,20796.0,20795.0,1.16456697]
[1674077629011,0.02832253,20800.0,20793.0,0.15]
[1674077629012,0.79685545,20800.0,20793.0,0.15]
[1674077629270,0.078,20798.0,20794.0,0.43608575]
[1674077629519,0.15,20799.0,20795.0,0.89769329]
[1674077629816,0.15,20799.0,20796.0,0.3707101]
[1674077630046,0.43113761,20800.0,20795.0,0.21767063]
[1674077630322,0.14568785,20799.0,20794.0,0.092]
[1674077630582,0.14568785,20799.0,20793.0,0.67268679]
[1674077630583,1.00585068,20800.0,20793.0,0.19176679]
[1674077630839,0.01091008,20795.0,20794.0,0.19432097]
[1674077631088,0.01091008,20795.0,20790.0,0.23444633]
[1674077631364,0.0787,20793.0,20790.0,0.23444633]
[1674077631586,0.0787,20793.0,20787.0,0.481048]
[1674077631840,0.0781,20791.0,20788.0,0.6952636]
[1674077632601,0.0781,20791.0,20788.0,0.21806191]
[1674077632853,0.480912,20794.0,20788.0,0.6952636]
[1674077632854,0.15,20794.0,20788.0,0.6952636]
[1674077633107,0.15,20794.0,20789.0,0.51021297]
[1674077633358,0.15,20794.0,20789.0,0.19432097]
[1674077633359,0.18742351,20794.0,20789.0,0.19432097]
[1674077633606,0.18742351,20794.0,20789.0,0.34432097]
[1674077633858,0.48742351,20794.0,20789.0,0.19432097]
[1674077634106,0.96833551,20794.0,20789.0,0.19432097]
[1674077634365,0.0781,20793.0,20789.0,0.28632097]
[1674077634652,0.0781,20793.0,20789.0,0.092]
[1674077634653,0.030549,20792.0,20789.0,0.092]
[1674077634967,0.780946,20793.0,20789.0,0.092]
[1674077635195,0.480946,20793.0,20789.0,0.28632097]
[1674077635445,0.480946,20793.0,20789.0,0.19432097]
[1674077635698,0.480946,20793.0,20789.0,0.28632097]
[1674077635952,0.480946,20793.0,20789.0,0.19438097]
[1674077636205,0.480946,20793.0,20789.0,0.28638097]
[1674077636458,0.66833551,20794.0,20789.0,0.19438097]
[1674077636699,0.66833551,20794.0,20789.0,0.28638097]
[1674077636953,0.66833551,20794.0,20789.0,0.19438097]
[1674077637205,0.66833551,20794.0,20789.0,0.28638097]
[1674077637452,0.66833551,20794.0,20789.0,0.19438097]
[1674077637716,0.66833551,20794.0,20790.0,0.22026683]
[1674077637990,0.66833551,20794.0,20790.0,0.4145878]
[1674077638248,0.480912,20794.0,20791.0,0.19432097]
[1674077638503,0.01091008,20795.0,20791.0,0.19432097]
[1674077639035,0.01091008,20795.0,20791.0,0.67529497]
[1674077639268,0.01091008,20795.0,20791.0,0.82529497]
[1674077639522,0.01091008,20795.0,20792.0,0.203095]
[1674077640036,0.01091008,20795.0,20792.0,0.834034]
[1674077640280,0.01091008,20795.0,20792.0,1.164988]
[1674077640799,0.01091008,20795.0,20793.0,0.317009]
[1674077641044,0.01091008,20795.0,20793.0,0.480929]
[1674077642056,0.01091008,20795.0,20792.0,0.684049]
[1674077642301,0.0781,20794.0,20793.0,0.092]
[1674077642549,0.108649,20794.0,20793.0,0.092]
[1674077643069,0.108649,20794.0,20790.0,0.481055]
[1674077643070,0.589556,20794.0,20790.0,0.481055]
[1674077643313,0.480907,20794.0,20792.0,0.092]
[1674077643567,0.030549,20793.0,20790.0,6e-05]
[1674077643864,0.15,20793.0,20790.0,6e-05]
[1674077644099,0.030549,20792.0,20787.0,0.481061]
[1674077644330,0.0786,20790.0,20787.0,0.481061]
[1674077644580,0.0786,20790.0,20786.0,0.67003072]
[1674077644581,0.030549,20789.0,20786.0,0.67003072]
[1674077644833,0.0786,20790.0,20786.0,0.67003072]
[1674077645575,0.0786,20790.0,20787.0,0.092]
[1674077645834,0.0786,20790.0,20786.0,0.67003072]
[1674077646086,0.0786,20790.0,20786.0,0.28094472]
[1674077646339,1.040602,20790.0,20786.0,0.28094472]
[1674077646597,0.180549,20789.0,20786.0,0.28094472]
[1674077646848,0.559146,20788.0,20786.0,0.28094472]
[1674077647102,0.030549,20787.0,20786.0,0.092]
[1674077647370,0.511618,20787.0,20786.0,0.092]
[1674077647665,0.511618,20787.0,20783.0,0.19198248]
[1674077647866,0.962138,20787.0,20786.0,0.092]
[1674077648127,0.962138,20787.0,20783.0,0.19198248]
[1674077648128,1.071187,20787.0,20783.0,0.19198248]
[1674077648378,1.040638,20787.0,20783.0,0.19198248]
[1674077648979,0.030549,20786.0,20783.0,0.19198248]
[1674077649150,0.560569,20787.0,20783.0,0.19198248]
[1674077649404,0.962209,20786.0,20781.0,0.481188]
[1674077649910,1.16470235,20786.0,20781.0,0.71108747]
[1674077650177,1.16470235,20786.0,20781.0,0.90540844]
[1674077650686,1.16470235,20786.0,20783.0,0.085]
[1674077651448,0.030549,20785.0,20783.0,0.085]
[1674077651692,0.481119,20785.0,20781.0,0.90540844]
[1674077651958,0.481119,20785.0,20781.0,0.71108747]
[1674077651959,0.030549,20784.0,20781.0,0.71108747]
[1674077652223,0.481119,20785.0,20781.0,0.71108747]
[1674077652473,0.0787,20784.0,20781.0,0.71108747]
[1674077653501,0.0787,20784.0,20781.0,0.31396809]
[1674077653749,0.0787,20784.0,20781.0,0.22996809]
[1674077653995,0.001,20784.0,20781.0,0.50928906]
[1674077654243,0.001,20784.0,20782.0,0.0542601]
[1674077654493,0.001,20784.0,20781.0,0.99049506]
[1674077654742,0.001,20784.0,20781.0,1.27736509]
[1674077655239,0.481094,20786.0,20781.0,1.19236509]
[1674077655490,0.68443986,20786.0,20781.0,1.38668606]
[1674077656253,0.001,20784.0,20781.0,1.38668606]
[1674077656502,0.68443986,20786.0,20781.0,1.19236509]
[1674077656764,0.68543986,20786.0,20781.0,1.47168606]
[1674077659083,0.0786,20785.0,20781.0,0.31496809]
[1674077659338,0.0786,20785.0,20781.0,0.085]
[1674077659339,0.0787,20782.0,20781.0,0.085]
[1674077659582,0.27290714,20782.0,20781.0,0.085]
[1674077659831,0.30345614,20782.0,20781.0,0.085]
[1674077660080,0.78464114,20782.0,20777.0,0.70406779]
[1674077660348,0.78464114,20782.0,20781.0,0.085]
[1674077660349,0.75409214,20782.0,20781.0,0.085]
[1674077660857,0.75409214,20782.0,20779.0,0.22738548]
[1674077660858,0.78464114,20782.0,20779.0,0.22738548]
[1674077661121,0.001,20782.0,20781.0,0.32850161]
[1674077661373,0.001,20782.0,20781.0,0.65650661]
[1674077662139,0.001,20782.0,20781.0,1.13771461]
[1674077662662,0.776898,20784.0,20781.0,1.49889799]
[1674077662932,0.776898,20784.0,20782.0,0.319097]
[1674077663188,0.776898,20784.0,20781.0,1.16245299]
[1674077663418,0.001,20782.0,20781.0,1.24745299]
[1674077663702,0.776898,20784.0,20781.0,0.68124499]
[1674077663959,0.777898,20784.0,20782.0,0.309154]
[1674077664288,0.777898,20784.0,20781.0,0.68118499]
[1674077664463,0.778898,20784.0,20781.0,0.76618499]
[1674077664712,0.778898,20784.0,20781.0,0.68118499]
[1674077664713,0.776898,20784.0,20781.0,0.68118499]
[1674077664965,0.776898,20784.0,20781.0,0.19997699]
[1674077665707,0.777898,20784.0,20781.0,0.28397699]
[1674077665955,0.776898,20784.0,20781.0,0.19997699]
[1674077666202,0.777898,20784.0,20781.0,0.28497699]
[1674077666446,1.258042,20784.0,20781.0,0.19997699]
[1674077666708,1.259042,20784.0,20781.0,0.28497699]
[1674077666954,1.258042,20784.0,20781.0,0.19997699]
[1674077667196,1.258042,20784.0,20781.0,0.28497699]
[1674077667197,1.259042,20784.0,20781.0,0.28497699]
[1674077667445,1.258042,20784.0,20781.0,0.19997699]
[1674077667698,0.030549,20783.0,20781.0,0.28497699]
[1674077667942,1.259042,20784.0,20781.0,0.28497699]
[1674077668699,1.259042,20784.0,20781.0,0.19997699]
[1674077668957,1.740181,20784.0,20781.0,0.085]
[1674077669204,0.35831794,20783.0,20778.0,0.854858]
[1674077669458,0.030549,20782.0,20781.0,0.085]
[1674077669680,0.32776894,20783.0,20778.0,0.854858]
[1674077669681,0.80894594,20783.0,20778.0,0.854858]
[1674077669958,0.80894594,20783.0,20781.0,0.085]
[1674077670216,0.80894594,20783.0,20778.0,1.04917897]
[1674077670468,0.80894594,20783.0,20781.0,0.085]
[1674077670469,0.001,20782.0,20781.0,0.085]
[1674077670722,0.80894594,20783.0,20778.0,1.04917897]
[1674077671727,0.80994594,20783.0,20781.0,0.085]
[1674077671978,0.80894594,20783.0,20778.0,1.04917897]
[1674077672222,0.030549,20782.0,20778.0,1.13317897]
[1674077672486,0.80994594,20783.0,20778.0,0.938858]
[1674077672750,0.80994594,20783.0,20779.0,0.00026892]
[1674077673003,0.80894594,20783.0,20779.0,0.19432097]
[1674077673299,0.001,20782.0,20779.0,0.19432097]
[1674077673510,0.001,20782.0,20778.0,0.854858]
[1674077673757,0.001,20782.0,20778.0,0.938858]
[1674077674261,0.001,20782.0,20779.0,0.21033936]
[1674077674516,0.80994594,20783.0,20779.0,0.21033936]
[1674077674758,0.80994594,20783.0,20779.0,0.48966033]
[1674077675013,0.80894594,20783.0,20779.0,0.40466033]
[1674077675836,0.80994594,20783.0,20779.0,0.29533936]
[1674077676077,0.80994594,20783.0,20779.0,0.48966033]
[1674077676846,0.80994594,20783.0,20779.0,0.29533936]
[1674077679124,0.80994594,20783.0,20779.0,0.48966033]
[1674077679635,0.80994594,20783.0,20779.0,0.29533936]
[1674077679899,0.0791,20783.0,20780.0,0.19432097]
[1674077680159,0.0791,20783.0,20781.0,1.48831399]
[1674077680160,0.001,20783.0,20781.0,1.48831399]
[1674077680418,0.001,20783.0,20782.0,0.319719]
[1674077680672,0.776898,20784.0,20782.0,0.800904]
[1674077680941,0.776898,20784.0,20783.0,0.306204]
[1674077681177,0.776898,20784.0,20782.0,0.481185]
[1674077682172,0.776898,20784.0,20781.0,0.67228299]
[1674077682423,0.001,20783.0,20781.0,0.75728299]
[1674077682678,0.001,20783.0,20781.0,0.67228299]
[1674077683701,0.001,20783.0,20782.0,0.025]
[1674077683965,0.776898,20784.0,20782.0,0.0812]
[1674077684221,0.001,20783.0,20782.0,0.0812]
[1674077684510,0.776898,20784.0,20782.0,0.416391]
[1674077684756,0.001,20783.0,20782.0,0.562379]
[1674077684993,0.776898,20784.0,20782.0,0.882576]
[1674077685241,0.776898,20784.0,20783.0,0.323196]
[1674077685832,0.776898,20784.0,20783.0,0.329956]
[1674077686018,0.776898,20784.0,20783.0,0.99441225]
[1674077686779,0.777898,20784.0,20783.0,0.99441225]
[1674077687028,0.776898,20784.0,20783.0,0.66352325]
[1674077687295,0.777898,20784.0,20783.0,0.74852325]
[1674077687544,0.777898,20784.0,20783.0,0.66352325]
[1674077687799,0.778898,20784.0,20783.0,1.08377425]
[1674077688065,0.778898,20784.0,20783.0,1.47982835]
[1674077688066,0.776898,20784.0,20783.0,1.47982835]
[1674077688314,0.777898,20784.0,20783.0,1.56482835]
[1674077688605,0.776898,20784.0,20783.0,1.47982835]
[1674077688836,0.776898,20784.0,20783.0,1.56482835]
[1674077689085,0.777898,20784.0,20783.0,1.56482835]
[1674077689845,0.776898,20784.0,20783.0,1.47982835]
[1674077690060,0.777898,20784.0,20783.0,1.56482835]
[1674077690332,0.777898,20784.0,20783.0,1.47982835]
[1674077690582,0.778898,20784.0,20783.0,1.56482835]
[1674077691088,0.778898,20784.0,20783.0,0.085]
[1674077691585,0.809447,20784.0,20783.0,0.085]
[1674077692080,0.92458585,20784.0,20783.0,0.085]
[1674077693830,1.09720792,20784.0,20783.0,0.085]
[1674077694081,0.92458585,20784.0,20783.0,0.085]
[1674077695580,0.809447,20784.0,20783.0,0.085]
[1674077697603,0.92458585,20784.0,20783.0,0.085]
[1674077700369,1.09720792,20784.0,20783.0,0.085]
[1674077700621,0.778898,20784.0,20783.0,0.085]
[1674077703637,0.778898,20784.0,20783.0,0.566162]
[1674077708188,0.778898,20784.0,20783.0,0.76170159]
[1674077708467,0.778898,20784.0,20783.0,1.76750756]
[1674077708714,0.778898,20784.0,20783.0,1.66038659]
[1674077709547,0.778898,20784.0,20783.0,2.13758828]
[1674077710248,0.778898,20784.0,20783.0,1.66038659]
[1674077715619,0.778898,20784.0,20783.0,1.58168659]
[1674077715869,0.778898,20784.0,20783.0,1.25136359]
[1674077716128,0.778898,20784.0,20783.0,1.57777759]
[1674077720404,0.778898,20784.0,20783.0,1.72777759]
[1674077721989,0.77882179,20784.0,20783.0,1.57777759]
[1674077723304,0.77882179,20784.0,20783.0,1.047324]
[1674077725486,0.77882179,20784.0,20783.0,0.566162]
[1674077726077,0.77882179,20784.0,20783.0,0.085]
[1674077728453,0.80937079,20784.0,20783.0,0.085]
[1674077729520,0.77882179,20784.0,20783.0,0.085]
[1674077731333,0.77882179,20784.0,20783.0,0.79336663]
[1674077732127,0.77882179,20784.0,20783.0,1.27452863]
[1674077732883,0.77882179,20784.0,20783.0,1.60722663]
[1674077733134,0.77882179,20784.0,20783.0,1.27452863]
[1674077733696,0.77882179,20784.0,20783.0,1.29492228]
[1674077735236,0.77882179,20784.0,20783.0,1.62002128]
[1674077737108,0.77882179,20784.0,20783.0,1.29492228]
[1674077737607,0.77882179,20784.0,20783.0,0.10539365]
[1674077737866,0.80937079,20784.0,20783.0,0.10539365]
[1674077738398,0.77882179,20784.0,20783.0,0.29058471]
[1674077746452,0.77882179,20784.0,20783.0,0.62833071]
[1674077746695,0.77882179,20784.0,20783.0,0.29058471]
[1674077755161,0.77882179,20784.0,20783.0,0.44058471]
[1674077756462,0.77882179,20784.0,20783.0,1.72886171]
[1674077756847,0.77882179,20784.0,20783.0,2.40752068]
[1674077757002,0.17244378,20784.0,20783.0,3.42696972]
[1674077757264,0.17244378,20784.0,20783.0,2.69426021]
[1674077757531,0.17244378,20784.0,20783.0,4.64324364]
[1674077757532,0.11818368,20784.0,20783.0,4.64324364]
[1674077757788,0.11818368,20784.0,20783.0,4.41327033]
[1674077758059,0.11818368,20784.0,20783.0,5.2046673]
[1674077758343,0.11818368,20784.0,20783.0,4.81794606]
[1674077758601,0.11818368,20784.0,20783.0,4.99013743]
[1674077758869,0.11818368,20784.0,20783.0,5.16224548]
[1674077759124,0.11618368,20784.0,20783.0,5.07724548]
[1674077759395,0.11618368,20784.0,20783.0,5.40600645]
[1674077759665,0.11618368,20784.0,20783.0,5.07724548]
[1674077759920,0.11618368,20784.0,20783.0,5.1914344]
[1674077760433,0.11618368,20784.0,20783.0,5.48727053]
[1674077760712,0.11618368,20784.0,20783.0,5.46620636]
[1674077760975,0.11618368,20784.0,20783.0,5.37665233]
[1674077761231,0.11618368,20784.0,20783.0,5.1914344]
[1674077761503,0.35111315,20792.0,20785.0,0.15]
[1674077761762,0.35111315,20792.0,20787.0,0.962134]
[1674077762066,0.35111315,20792.0,20788.0,0.68424197]
[1674077762342,0.2359743,20792.0,20789.0,0.67533897]
[1674077762598,0.2359743,20792.0,20790.0,0.67322497]
[1674077762599,0.0105261,20792.0,20790.0,0.67322497]
[1674077762854,0.0105261,20792.0,20791.0,0.873637]
[1674077763480,0.0105261,20792.0,20791.0,0.559077]
[1674077763939,0.0105261,20792.0,20791.0,0.652077]
[1674077764373,0.0105261,20792.0,20791.0,0.1711]
[1674077764595,0.0105261,20792.0,20791.0,0.093]
[1674077766208,0.0105261,20792.0,20791.0,0.09306]
[1674077769100,0.0105261,20792.0,20791.0,1.063514]
[1674077769314,0.0105261,20792.0,20791.0,1.40488]
[1674077769531,0.0105261,20792.0,20791.0,1.063514]
[1674077770039,0.0105261,20792.0,20791.0,1.377393]
[1674077770248,0.0105261,20792.0,20791.0,1.527393]
[1674077772068,0.0105261,20792.0,20791.0,2.00459469]
[1674077772479,0.0105261,20792.0,20791.0,3.00335078]
[1674077772480,6.1e-06,20792.0,20791.0,3.00335078]
[1674077772731,6.1e-06,20792.0,20791.0,3.33321122]
[1674077772985,6.1e-06,20792.0,20791.0,3.45926255]
[1674077773260,6.1e-06,20792.0,20791.0,3.33221122]
[1674077773526,6.1e-06,20792.0,20791.0,3.24021122]
[1674077773822,6.1e-06,20792.0,20791.0,3.43344146]
[1674077774061,6.1e-06,20792.0,20791.0,3.20395513]
[1674077774315,6.1e-06,20792.0,20791.0,3.45072979]
[1674077774575,6.1e-06,20792.0,20791.0,3.29595513]
[1674077774842,1.22e-05,20793.0,20791.0,3.20395513]
[1674077775096,1.22e-05,20793.0,20792.0,2.25782937]
[1674077775320,1.22e-05,20793.0,20792.0,4.32585329]
[1674077775611,1.22e-05,20793.0,20792.0,3.99614961]
[1674077775900,1.22e-05,20793.0,20792.0,3.69614961]
[1674077776210,1.22e-05,20793.0,20792.0,3.10363369]
[1674077776423,1.22e-05,20793.0,20792.0,2.44853369]
[1674077777201,1.22e-05,20793.0,20792.0,2.35653369]
[1674077777488,1.22e-05,20793.0,20792.0,2.44853369]
[1674077778247,1.22e-05,20793.0,20792.0,1.94823369]
[1674077778517,1.22e-05,20793.0,20792.0,0.981578]
[1674077778796,1.22e-05,20793.0,20792.0,0.572954]
[1674077779298,1.22e-05,20793.0,20792.0,0.573014]
[1674077780128,1.22e-05,20793.0,20792.0,0.57328275]
[1674077780341,0.0010122,20793.0,20792.0,0.56628275]
[1674077780600,0.0010122,20793.0,20792.0,0.57478275]
[1674077780859,0.0010122,20793.0,20792.0,0.72478275]
[1674077781386,0.0010122,20793.0,20792.0,1.03424575]
[1674077781668,0.0010122,20793.0,20792.0,1.51519975]
[1674077782169,0.0010122,20793.0,20792.0,2.2041754]
[1674077782422,0.0010122,20793.0,20792.0,2.2126754]
[1674077783480,0.0010122,20793.0,20792.0,0.76479696]
[1674077783757,0.0010122,20793.0,20792.0,0.29683396]
[1674077784603,0.0010122,20793.0,20792.0,0.77772796]
[1674077785398,0.0010122,20793.0,20792.0,1.09401896]
[1674077785693,0.0010122,20793.0,20792.0,1.57497296]
[1674077785959,0.0010122,20793.0,20792.0,2.20217465]
[1674077786229,0.0010122,20793.0,20792.0,2.28087465]
[1674077786489,0.0010122,20793.0,20792.0,2.58087465]
[1674077786748,1e-08,20793.0,20792.0,2.58087465]
[1674077787526,1e-08,20793.0,20792.0,3.10627465]
[1674077788044,1e-08,20793.0,20792.0,3.1065434]
[1674077788573,1e-08,20793.0,20792.0,3.0278434]
[1674077789362,1e-08,20793.0,20792.0,3.6110434]
[1674077789663,1e-08,20793.0,20792.0,3.94132608]
[1674077790191,0.01091008,20795.0,20793.0,5.999e-05]
[1674077790466,0.01091008,20795.0,20794.0,2.31316569]
[1674077790728,0.01091008,20795.0,20794.0,2.94380419]
[1674077790997,0.01091008,20795.0,20794.0,2.62166569]
[1674077791539,0.01091008,20795.0,20794.0,2.71366569]
[1674077792658,0.01091008,20795.0,20794.0,3.62787786]
[1674077793211,0.01091008,20795.0,20794.0,3.62799357]
[1674077793477,8e-08,20795.0,20794.0,3.62799407]
[1674077793756,8e-08,20795.0,20794.0,3.53595139]
[1674077794006,8e-08,20795.0,20794.0,3.62795139]
[1674077794534,8e-08,20795.0,20794.0,3.62801139]
[1674077795092,8e-08,20795.0,20794.0,3.29752569]
[1674077799599,8e-08,20795.0,20794.0,3.29746569]
[1674077800412,8e-08,20795.0,20794.0,2.91936569]
[1674077801975,8e-08,20795.0,20794.0,2.32706569]
[1674077804061,8e-08,20795.0,20794.0,2.33556569]
[1674077804351,8e-08,20795.0,20794.0,1.858364]
[1674077805146,8e-08,20795.0,20794.0,1.543221]
[1674077805932,8e-08,20795.0,20794.0,1.865832]
[1674077807232,8e-08,20795.0,20794.0,1.543221]
[1674077808541,8e-08,20795.0,20794.0,1.5744799]
[1674077811245,8e-08,20795.0,20794.0,1.8785169]
[1674077812121,8e-08,20795.0,20794.0,1.87844084]
[1674077813895,8e-08,20795.0,20794.0,1.57440384]
[1674077814149,8e-08,20795.0,20794.0,0.60408984]
[1674077814448,0.03054908,20795.0,20794.0,0.1232589]
[1674077815454,0.51143308,20795.0,20794.0,0.1232589]
[1674077815758,0.51243308,20795.0,20794.0,0.1082589]
[1674077816228,0.51343308,20795.0,20794.0,0.1392589]
[1674077818306,0.51343308,20795.0,20794.0,0.0622589]
[1674077818583,0.51143308,20795.0,20794.0,0.0312589]
[1674077818814,0.58953308,20795.0,20794.0,0.0312589]
[1674077819588,0.58953308,20795.0,20794.0,0.1172589]
[1674077819589,0.70567193,20795.0,20794.0,0.1172589]
[1674077819853,0.59053308,20795.0,20794.0,0.1172589]
[1674077820111,0.10964908,20795.0,20794.0,0.1172589]
[1674077820366,0.10964908,20795.0,20794.0,0.0312589]
[1674077820367,0.10864908,20795.0,20794.0,0.0312589]
[1674077821385,0.07810008,20795.0,20794.0,0.1384589]
[1674077821673,8e-08,20795.0,20794.0,0.6193659]
[1674077821930,0.00100008,20795.0,20794.0,0.5933659]
[1674077822486,0.00100008,20795.0,20794.0,1.0742729]
[1674077822732,8e-08,20795.0,20794.0,1.0742729]
[1674077822998,0.00100008,20795.0,20794.0,1.1602729]
[1674077823768,0.00100008,20795.0,20794.0,1.99533559]
[1674077824030,8e-08,20795.0,20794.0,2.05933559]
[1674077824279,0.00100008,20795.0,20794.0,2.36211311]
[1674077824544,8e-08,20795.0,20794.0,2.27711311]
[1674077824835,0.00100008,20795.0,20794.0,2.66211311]
[1674077825067,0.00100008,20795.0,20794.0,2.57711311]
[1674077825317,0.00100001,20795.0,20794.0,2.14433559]
[1674077825572,0.01200928,20799.0,20796.0,0.15]
[1674077825834,0.01200928,20799.0,20797.0,0.961676]
[1674077826096,0.01200928,20799.0,20797.0,1.15599697]
[1674077826388,0.01200928,20799.0,20797.0,0.961676]
[1674077827158,0.01300928,20799.0,20797.0,0.961676]
[1674077827479,0.01200928,20799.0,20797.0,0.961676]
[1674077827716,0.01300928,20799.0,20797.0,1.047676]
[1674077828998,0.26824864,20799.0,20797.0,0.566838]
[1674077829258,0.030549,20798.0,20797.0,0.086]
[1674077829780,0.108649,20798.0,20797.0,0.086]
[1674077831137,0.108649,20798.0,20796.0,0.68113752]
[1674077831439,0.109249,20797.0,20796.0,0.68113752]
[1674077831965,0.0787,20797.0,20796.0,0.68113752]
[1674077832492,0.0787,20797.0,20796.0,0.76713752]
[1674077832762,0.0787,20797.0,20796.0,0.68113752]
[1674077833012,0.0797,20797.0,20796.0,0.76713752]
[1674077833264,0.0787,20797.0,20796.0,0.68113752]
[1674077834310,0.0787,20797.0,20796.0,0.76813752]
[1674077835083,0.20574813,20799.0,20796.0,0.76813752]
[1674077835447,0.20574813,20799.0,20796.0,0.96245849]
[1674077835624,0.20574813,20799.0,20796.0,0.76813752]
[1674077835873,0.20574813,20799.0,20796.0,0.68113752]
[1674077836128,0.09060928,20799.0,20796.0,0.76813752]
[1674077836402,0.20574813,20799.0,20796.0,0.76813752]
[1674077838186,0.3783702,20799.0,20796.0,0.76813752]
[1674077838671,0.20574813,20799.0,20796.0,0.76813752]
[1674077838943,0.030549,20798.0,20796.0,0.76813752]
[1674077839207,0.19373885,20797.0,20796.0,0.087]
[1674077839487,0.76260907,20797.0,20796.0,0.087]
[1674077839765,0.70515741,20797.0,20796.0,0.087]
[1674077840031,0.76260907,20797.0,20796.0,0.087]
[1674077840290,0.99282774,20797.0,20794.0,0.0312589]
[1674077840598,0.88367874,20797.0,20796.0,0.087]
[1674077840849,0.87789216,20797.0,20796.0,0.087]
[1674077841109,0.82030567,20797.0,20796.0,0.087]
[1674077841363,1.7435327,20797.0,20794.0,0.0312589]
[1674077841660,0.31852044,20796.0,20794.0,0.1172589]
[1674077842147,0.0787,20795.0,20794.0,0.0312589]
[1674077842154,0.19388858,20795.0,20794.0,0.0312589]
[1674077842449,0.22443758,20795.0,20794.0,0.0312589]
[1674077843727,0.22443758,20795.0,20794.0,0.0332589]
[1674077843728,0.97810444,20795.0,20794.0,0.0332589]
[1674077843993,1.24161586,20795.0,20794.0,0.0312589]
[1674077844256,1.84150342,20795.0,20794.0,0.0332589]
[1674077844522,2.19782868,20795.0,20794.0,0.0332589]
[1674077844799,2.28699759,20795.0,20794.0,0.0332589]
[1674077845058,2.39890055,20795.0,20794.0,0.0332589]
[1674077845589,2.11100003,20795.0,20794.0,0.0332589]
[1674077846671,2.39868152,20795.0,20794.0,0.0332589]
[1674077847478,2.39868152,20795.0,20794.0,0.03318712]
[1674077847742,2.45949659,20795.0,20794.0,0.03318712]
[1674077848004,2.12935344,20795.0,20794.0,0.03318712]
[1674077848257,2.35949659,20795.0,20794.0,0.03318712]
[1674077848804,2.06109659,20795.0,20794.0,0.03318712]
[1674077849060,2.00127622,20795.0,20794.0,0.03318712]
[1674077849340,2.30037622,20795.0,20794.0,0.03318712]